[Event "Titled Tuesday Blitz November 07 Late 2023"]
[White "Glavina, Pablo"]
[Black "dodoucb"]
[WhiteFideId "100234"]
[WhiteElo "2766"]
[BlackElo "2490"]
[Result "0-1"]
[Round "3"]
[TimeControl "180+1"]
[Date "2023.11.07"]
[WhiteClock "0:00:05"]
[BlackClock "0:00:07"]
[Board "60"]

1. c4 {[%clk 0:03:00]}  Nf6 {[%clk 0:02:59]} 2. Nc3 {[%clk 0:03:00]}  e5 {[%clk 0:02:34]} 3. Nf3 {[%clk 0:03:00]}  Nc6 {[%clk 0:02:32]} 4. g3 {[%clk 0:03:00]}  Bb4 {[%clk 0:02:31]} 5. Bg2 {[%clk 0:03:00]}  O-O {[%clk 0:02:29]} 6. O-O {[%clk 0:03:00]}  a6 {[%clk 0:02:26]} 7. Nd5 {[%clk 0:03:00]}  Bc5 {[%clk 0:02:23]} 8. d3 {[%clk 0:02:56]}  h6 {[%clk 0:02:21]} 9. a3 {[%clk 0:02:54]}  d6 {[%clk 0:02:14]} 10. b4 {[%clk 0:02:53]}  Ba7 {[%clk 0:02:10]} 11. Bb2 {[%clk 0:02:44]}  Nxd5 {[%clk 0:02:02]} 12. cxd5 {[%clk 0:02:41]}  Ne7 {[%clk 0:02:02]} 13. Nd2 {[%clk 0:02:42]}  f5 {[%clk 0:01:55]} 14. Rc1 {[%clk 0:02:41]}  Bd7 {[%clk 0:01:52]} 15. Qc2 {[%clk 0:02:39]}  Rc8 {[%clk 0:01:49]} 16. Nb3 {[%clk 0:02:38]}  Qe8 {[%clk 0:01:38]} 17. Na5 {[%clk 0:02:37]}  b5 {[%clk 0:01:22]} 18. Nb3 {[%clk 0:02:29]}  Qh5 {[%clk 0:01:16]} 19. d4 {[%clk 0:02:24]}  e4 {[%clk 0:01:12]} 20. f3 {[%clk 0:02:21]}  Nxd5 {[%clk 0:01:09]} 21. Qd2 {[%clk 0:02:20]}  Rce8 {[%clk 0:00:59]} 22. fxe4 {[%clk 0:02:17]}  fxe4 {[%clk 0:01:00]} 23. Rxf8+ {[%clk 0:02:14]}  Kxf8 {[%clk 0:01:00]} 24. e3 {[%clk 0:02:08]}  Qg5 {[%clk 0:00:56]} 25. Rf1+ {[%clk 0:02:01]}  Kg8 {[%clk 0:00:56]} 26. Bc1 {[%clk 0:02:02]}  Nf6 {[%clk 0:00:49]} 27. Na5 {[%clk 0:01:56]}  Bb6 {[%clk 0:00:45]} 28. Rf4 {[%clk 0:01:50]}  d5 {[%clk 0:00:39]} 29. Nb3 {[%clk 0:01:47]}  c6 {[%clk 0:00:37]} 30. Nc5 {[%clk 0:01:46]}  Bc8 {[%clk 0:00:37]} 31. Qc3 {[%clk 0:01:41]}  Bc7 {[%clk 0:00:36]} 32. Rf1 {[%clk 0:01:41]}  Ng4 {[%clk 0:00:35]} 33. Qe1 {[%clk 0:01:32]}  Rf8 {[%clk 0:00:31]} 34. Rxf8+ {[%clk 0:01:31]}  Kxf8 {[%clk 0:00:32]} 35. h3 {[%clk 0:01:27]}  Nf6 {[%clk 0:00:31]} 36. g4 {[%clk 0:01:27]}  h5 {[%clk 0:00:31]} 37. gxh5 {[%clk 0:01:20]}  Bxh3 {[%clk 0:00:29]} 38. Qf2 {[%clk 0:01:20]}  Bg3 {[%clk 0:00:28]} 39. Qf1 {[%clk 0:01:15]}  Bd6 {[%clk 0:00:23]} 40. Nxa6 {[%clk 0:00:58]}  Kg8 {[%clk 0:00:23]} 41. h6 {[%clk 0:00:53]}  Qg3 {[%clk 0:00:22]} 42. h7+ {[%clk 0:00:36]}  Kxh7 {[%clk 0:00:21]} 43. Qf2 {[%clk 0:00:35]}  Qh2+ {[%clk 0:00:20]} 44. Kf1 {[%clk 0:00:35]}  Qh1+ {[%clk 0:00:17]} 45. Ke2 {[%clk 0:00:34]}  Qxg2 {[%clk 0:00:17]} 46. Qxg2 {[%clk 0:00:34]}  Bxg2 {[%clk 0:00:17]} 47. Bd2 {[%clk 0:00:33]}  Bf3+ {[%clk 0:00:17]} 48. Kf1 {[%clk 0:00:34]}  g5 {[%clk 0:00:18]} 49. Be1 {[%clk 0:00:34]}  g4 {[%clk 0:00:18]} 50. Nc5 {[%clk 0:00:34]}  Bxc5 {[%clk 0:00:18]} 51. bxc5 {[%clk 0:00:35]}  g3 {[%clk 0:00:18]} 52. Bxg3 {[%clk 0:00:35]}  Ng4 {[%clk 0:00:16]} 53. Bf4 {[%clk 0:00:35]}  Kg6 {[%clk 0:00:16]} 54. Ke1 {[%clk 0:00:35]}  Kh5 {[%clk 0:00:16]} 55. Kd2 {[%clk 0:00:36]}  Kh4 {[%clk 0:00:16]} 56. Kc3 {[%clk 0:00:37]}  Kh3 {[%clk 0:00:17]} 57. Kb4 {[%clk 0:00:37]}  Kg2 {[%clk 0:00:18]} 58. Ka5 {[%clk 0:00:38]}  Kf2 {[%clk 0:00:15]} 59. Kb6 {[%clk 0:00:39]}  Nxe3 {[%clk 0:00:16]} 60. Kxc6 {[%clk 0:00:39]}  Nc2 {[%clk 0:00:13]} 61. Kxd5 {[%clk 0:00:33]}  e3+ {[%clk 0:00:13]} 62. Ke5 {[%clk 0:00:33]}  e2 {[%clk 0:00:13]} 63. Bd2 {[%clk 0:00:34]}  Nxa3 {[%clk 0:00:13]} 64. Ke6 {[%clk 0:00:21]}  Nc4 {[%clk 0:00:11]} 65. Bb4 {[%clk 0:00:22]}  Ne3 {[%clk 0:00:11]} 66. Kd6 {[%clk 0:00:15]}  Nc4+ {[%clk 0:00:09]} 67. Ke6 {[%clk 0:00:13]}  Ne3 {[%clk 0:00:08]} 68. Kd6 {[%clk 0:00:14]}  Nd5 {[%clk 0:00:08]} 69. Bd2 {[%clk 0:00:12]}  e1=Q {[%clk 0:00:06]} 70. Bxe1+ {[%clk 0:00:12]}  Kxe1 {[%clk 0:00:07]} 71. c6 {[%clk 0:00:05]}  b4 {[%clk 0:00:07]} 0-1


[Site "https://www.chess.com"]

[Event "Titled Tuesday Blitz November 07 Late 2023"]
[White "Csonka, Balazs"]
[Black "Willy, Stephen"]
[WhiteFideId "742910"]
[BlackFideId "30981468"]
[WhiteElo "2735"]
[BlackElo "2481"]
[Result "1-0"]
[Round "3"]
[TimeControl "180+1"]
[Date "2023.11.07"]
[WhiteClock "0:00:03"]
[BlackClock "0:00:00"]
[Board "64"]

1. e4 {[%clk 0:03:00]}  d5 {[%clk 0:02:59]} 2. exd5 {[%clk 0:02:43]}  Nf6 {[%clk 0:02:58]} 3. c4 {[%clk 0:02:42]}  c6 {[%clk 0:02:55]} 4. d4 {[%clk 0:02:42]}  cxd5 {[%clk 0:02:55]} 5. Nc3 {[%clk 0:02:42]}  Nc6 {[%clk 0:02:54]} 6. Bg5 {[%clk 0:02:39]}  Ne4 {[%clk 0:02:50]} 7. Nxe4 {[%clk 0:02:35]}  dxe4 {[%clk 0:02:51]} 8. d5 {[%clk 0:02:35]}  Ne5 {[%clk 0:02:42]} 9. Qd4 {[%clk 0:02:34]}  f6 {[%clk 0:02:38]} 10. Bd2 {[%clk 0:02:22]}  Bf5 {[%clk 0:02:37]} 11. c5 {[%clk 0:01:50]}  a6 {[%clk 0:02:27]} 12. Rc1 {[%clk 0:01:42]}  e6 {[%clk 0:02:23]} 13. d6 {[%clk 0:01:41]}  g6 {[%clk 0:02:02]} 14. h3 {[%clk 0:01:17]}  h5 {[%clk 0:01:44]} 15. f4 {[%clk 0:01:16]}  exf3 {[%clk 0:01:37]} 16. Nxf3 {[%clk 0:01:16]}  Nxf3+ {[%clk 0:01:36]} 17. gxf3 {[%clk 0:01:17]}  Bg7 {[%clk 0:01:23]} 18. Bd3 {[%clk 0:01:16]}  O-O {[%clk 0:01:19]} 19. Rg1 {[%clk 0:01:09]}  Qd7 {[%clk 0:01:00]} 20. Bxf5 {[%clk 0:01:01]}  exf5 {[%clk 0:00:59]} 21. h4 {[%clk 0:00:46]}  Kh7 {[%clk 0:00:41]} 22. Kf2 {[%clk 0:00:45]}  Rfe8 {[%clk 0:00:35]} 23. a4 {[%clk 0:00:40]}  Re6 {[%clk 0:00:33]} 24. Rge1 {[%clk 0:00:36]}  Rae8 {[%clk 0:00:33]} 25. b3 {[%clk 0:00:36]}  Re5 {[%clk 0:00:17]} 26. Bf4 {[%clk 0:00:32]}  Rxe1 {[%clk 0:00:15]} 27. Rxe1 {[%clk 0:00:31]}  Rxe1 {[%clk 0:00:16]} 28. Kxe1 {[%clk 0:00:32]}  g5 {[%clk 0:00:16]} 29. Bd2 {[%clk 0:00:23]}  f4 {[%clk 0:00:15]} 30. b4 {[%clk 0:00:17]}  f5 {[%clk 0:00:14]} 31. Qd5 {[%clk 0:00:16]}  g4 {[%clk 0:00:08]} 32. b5 {[%clk 0:00:14]}  g3 {[%clk 0:00:08]} 33. c6 {[%clk 0:00:12]}  Qe8+ {[%clk 0:00:06]} 34. Kf1 {[%clk 0:00:12]}  g2+ {[%clk 0:00:06]} 35. Kg1 {[%clk 0:00:08]}  Qe2 {[%clk 0:00:07]} 36. Qxf5+ {[%clk 0:00:07]}  Kg8 {[%clk 0:00:04]} 37. Qd5+ {[%clk 0:00:07]}  Kh8 {[%clk 0:00:01]} 38. Qxh5+ {[%clk 0:00:07]}  Kg8 {[%clk 0:00:02]} 39. Qd5+ {[%clk 0:00:07]}  Kh8 {[%clk 0:00:02]} 40. Qh5+ {[%clk 0:00:02]}  Kg8 {[%clk 0:00:02]} 41. Qd5+ {[%clk 0:00:02]}  Kh7 {[%clk 0:00:03]} 42. Qe4+ {[%clk 0:00:02]}  Qxe4 {[%clk 0:00:02]} 43. fxe4 {[%clk 0:00:03]}  f3 {[%clk 0:00:03]} 44. Be3 {[%clk 0:00:03]}  Be5 {[%clk 0:00:00]} 45. d7 {[%clk 0:00:03]} 1-0


[Site "https://www.chess.com"]

[Event "Titled Tuesday Blitz November 07 Late 2023"]
[White "Koc, Przemyslaw"]
[Black "Tatarinov, Dmitry"]
[WhiteFideId "1109081"]
[BlackFideId "24160067"]
[WhiteElo "2476"]
[BlackElo "2725"]
[Result "0-1"]
[Round "3"]
[TimeControl "180+1"]
[Date "2023.11.07"]
[WhiteClock "0:00:09"]
[BlackClock "0:01:28"]
[Board "65"]

1. d4 {[%clk 0:03:00]}  Nf6 {[%clk 0:02:50]} 2. Bg5 {[%clk 0:03:00]}  e6 {[%clk 0:02:50]} 3. Nd2 {[%clk 0:02:56]}  d5 {[%clk 0:02:50]} 4. e3 {[%clk 0:02:56]}  Be7 {[%clk 0:02:50]} 5. Bd3 {[%clk 0:02:55]}  c5 {[%clk 0:02:49]} 6. c3 {[%clk 0:02:55]}  Nc6 {[%clk 0:02:49]} 7. Ngf3 {[%clk 0:02:56]}  h6 {[%clk 0:02:49]} 8. Bh4 {[%clk 0:02:55]}  O-O {[%clk 0:02:48]} 9. O-O {[%clk 0:02:55]}  b6 {[%clk 0:02:48]} 10. Ne5 {[%clk 0:02:55]}  Nxe5 {[%clk 0:02:48]} 11. dxe5 {[%clk 0:02:56]}  Nd7 {[%clk 0:02:48]} 12. Bxe7 {[%clk 0:02:56]}  Qxe7 {[%clk 0:02:49]} 13. Qh5 {[%clk 0:02:57]}  Qg5 {[%clk 0:02:47]} 14. Qxg5 {[%clk 0:02:55]}  hxg5 {[%clk 0:02:48]} 15. f4 {[%clk 0:02:52]}  gxf4 {[%clk 0:02:47]} 16. exf4 {[%clk 0:02:53]}  Bb7 {[%clk 0:02:46]} 17. h4 {[%clk 0:02:41]}  f6 {[%clk 0:02:39]} 18. exf6 {[%clk 0:02:40]}  gxf6 {[%clk 0:02:37]} 19. Rae1 {[%clk 0:02:41]}  e5 {[%clk 0:02:35]} 20. Bf5 {[%clk 0:02:39]}  Rad8 {[%clk 0:02:24]} 21. Bxd7 {[%clk 0:02:37]}  Rxd7 {[%clk 0:02:25]} 22. fxe5 {[%clk 0:02:38]}  fxe5 {[%clk 0:02:24]} 23. Rxf8+ {[%clk 0:02:38]}  Kxf8 {[%clk 0:02:24]} 24. Rxe5 {[%clk 0:02:38]}  d4 {[%clk 0:02:25]} 25. c4 {[%clk 0:02:30]}  Rg7 {[%clk 0:02:24]} 26. Rg5 {[%clk 0:02:26]}  Re7 {[%clk 0:02:13]} 27. Kf2 {[%clk 0:02:24]}  d3 {[%clk 0:02:13]} 28. Nf3 {[%clk 0:01:44]}  Re2+ {[%clk 0:02:02]} 29. Kg3 {[%clk 0:01:44]}  d2 {[%clk 0:02:02]} 30. Nxd2 {[%clk 0:01:21]}  Rxg2+ {[%clk 0:02:01]} 31. Kf4 {[%clk 0:01:20]}  Rxd2 {[%clk 0:02:01]} 32. h5 {[%clk 0:01:15]}  Rxb2 {[%clk 0:02:00]} 33. h6 {[%clk 0:01:15]}  Rf2+ {[%clk 0:01:58]} 34. Ke5 {[%clk 0:01:14]}  Rf7 {[%clk 0:01:57]} 35. Kd6 {[%clk 0:01:13]}  Be4 {[%clk 0:01:51]} 36. a4 {[%clk 0:00:52]}  Bd3 {[%clk 0:01:44]} 37. a5 {[%clk 0:00:48]}  Bxc4 {[%clk 0:01:43]} 38. axb6 {[%clk 0:00:47]}  axb6 {[%clk 0:01:44]} 39. Rg6 {[%clk 0:00:42]}  Bd3 {[%clk 0:01:39]} 40. Re6 {[%clk 0:00:40]}  c4 {[%clk 0:01:38]} 41. Ke5 {[%clk 0:00:34]}  c3 {[%clk 0:01:35]} 42. Rxb6 {[%clk 0:00:32]}  c2 {[%clk 0:01:34]} 43. Rc6 {[%clk 0:00:17]}  Rf1 {[%clk 0:01:34]} 44. Ke6 {[%clk 0:00:13]}  Bf5+ {[%clk 0:01:28]} 45. Kf6 {[%clk 0:00:12]}  Bd7+ {[%clk 0:01:28]} 46. Kg6 {[%clk 0:00:09]}  Bxc6 {[%clk 0:01:28]} 0-1


[Site "https://www.chess.com"]

[Event "Titled Tuesday Blitz November 07 Late 2023"]
[White "Pakleza, Zbigniew"]
[Black "Baches Garcia, Guillermo"]
[WhiteFideId "1119290"]
[BlackFideId "2209764"]
[WhiteElo "2703"]
[BlackElo "2476"]
[Result "1-0"]
[Round "3"]
[TimeControl "180+1"]
[Date "2023.11.07"]
[WhiteClock "0:00:03"]
[BlackClock "0:00:00"]
[Board "66"]

1. d4 {[%clk 0:03:00]}  d5 {[%clk 0:02:58]} 2. Nf3 {[%clk 0:03:00]}  e6 {[%clk 0:02:58]} 3. Bf4 {[%clk 0:03:01]}  Bd6 {[%clk 0:02:58]} 4. Bg3 {[%clk 0:03:01]}  Nf6 {[%clk 0:02:58]} 5. Nbd2 {[%clk 0:03:01]}  O-O {[%clk 0:02:58]} 6. e3 {[%clk 0:03:02]}  c5 {[%clk 0:02:58]} 7. c3 {[%clk 0:03:02]}  Qc7 {[%clk 0:02:58]} 8. Be2 {[%clk 0:03:01]}  Nbd7 {[%clk 0:02:57]} 9. c4 {[%clk 0:03:02]}  cxd4 {[%clk 0:02:48]} 10. Nxd4 {[%clk 0:03:03]}  Bxg3 {[%clk 0:02:44]} 11. hxg3 {[%clk 0:03:04]}  dxc4 {[%clk 0:02:38]} 12. Nxc4 {[%clk 0:03:02]}  Nb6 {[%clk 0:02:35]} 13. Rc1 {[%clk 0:02:58]}  Nxc4 {[%clk 0:02:32]} 14. Bxc4 {[%clk 0:02:59]}  Qa5+ {[%clk 0:02:21]} 15. Qd2 {[%clk 0:02:57]}  Qxd2+ {[%clk 0:02:12]} 16. Kxd2 {[%clk 0:02:58]}  Rd8 {[%clk 0:02:11]} 17. Ke2 {[%clk 0:02:56]}  Bd7 {[%clk 0:02:09]} 18. f3 {[%clk 0:02:39]}  Kf8 {[%clk 0:02:04]} 19. e4 {[%clk 0:02:36]}  e5 {[%clk 0:02:01]} 20. Nb3 {[%clk 0:02:31]}  Rac8 {[%clk 0:01:54]} 21. Ke3 {[%clk 0:02:26]}  Ke7 {[%clk 0:01:46]} 22. Be2 {[%clk 0:02:18]}  Be6 {[%clk 0:01:38]} 23. Nc5 {[%clk 0:02:13]}  b6 {[%clk 0:01:31]} 24. Nxe6 {[%clk 0:02:06]}  Kxe6 {[%clk 0:01:31]} 25. f4 {[%clk 0:02:00]}  Rxc1 {[%clk 0:01:15]} 26. Rxc1 {[%clk 0:01:59]}  Rd4 {[%clk 0:01:06]} 27. Bf3 {[%clk 0:01:57]}  Rd7 {[%clk 0:00:47]} 28. Rc6+ {[%clk 0:01:04]}  Rd6 {[%clk 0:00:46]} 29. Rc8 {[%clk 0:00:56]}  h5 {[%clk 0:00:38]} 30. Rc4 {[%clk 0:00:24]}  Rd7 {[%clk 0:00:36]} 31. Rb4 {[%clk 0:00:19]}  g6 {[%clk 0:00:35]} 32. Rb5 {[%clk 0:00:17]}  exf4+ {[%clk 0:00:34]} 33. gxf4 {[%clk 0:00:18]}  Rc7 {[%clk 0:00:33]} 34. f5+ {[%clk 0:00:14]}  Ke7 {[%clk 0:00:32]} 35. e5 {[%clk 0:00:12]}  Nd7 {[%clk 0:00:30]} 36. f6+ {[%clk 0:00:10]}  Ke8 {[%clk 0:00:25]} 37. Kd4 {[%clk 0:00:04]}  Rc5 {[%clk 0:00:23]} 38. Rxc5 {[%clk 0:00:04]}  Nxc5 {[%clk 0:00:23]} 39. Bc6+ {[%clk 0:00:03]}  Kd8 {[%clk 0:00:23]} 40. Kd5 {[%clk 0:00:03]}  Kc7 {[%clk 0:00:23]} 41. Be8 {[%clk 0:00:02]}  Ne6 {[%clk 0:00:18]} 42. Bxf7 {[%clk 0:00:02]}  Ng5 {[%clk 0:00:18]} 43. e6 {[%clk 0:00:02]}  Kd8 {[%clk 0:00:19]} 44. e7+ {[%clk 0:00:02]}  Kd7 {[%clk 0:00:00]} 45. e8=Q+ {[%clk 0:00:03]} 1-0


[Site "https://www.chess.com"]

[Event "Titled Tuesday Blitz November 07 Late 2023"]
[White "Priasmoro, Novendra"]
[Black "Zirkelbach, Maj"]
[WhiteFideId "7105029"]
[BlackFideId "14613395"]
[WhiteElo "2697"]
[BlackElo "2474"]
[Result "0-1"]
[Round "3"]
[TimeControl "180+1"]
[Date "2023.11.07"]
[WhiteClock "0:00:48"]
[BlackClock "0:00:04"]
[Board "67"]

1. Nf3 {[%clk 0:03:00]}  Nf6 {[%clk 0:02:59]} 2. g3 {[%clk 0:03:00]}  d5 {[%clk 0:02:59]} 3. Bg2 {[%clk 0:03:01]}  c6 {[%clk 0:03:00]} 4. O-O {[%clk 0:03:01]}  Bg4 {[%clk 0:03:00]} 5. d4 {[%clk 0:03:00]}  Nbd7 {[%clk 0:03:00]} 6. c4 {[%clk 0:03:00]}  e6 {[%clk 0:02:58]} 7. Ne5 {[%clk 0:03:00]}  Nxe5 {[%clk 0:02:56]} 8. dxe5 {[%clk 0:03:00]}  Nd7 {[%clk 0:02:57]} 9. h3 {[%clk 0:03:00]}  Bh5 {[%clk 0:02:56]} 10. cxd5 {[%clk 0:03:00]}  cxd5 {[%clk 0:02:56]} 11. f4 {[%clk 0:03:01]}  Bc5+ {[%clk 0:02:47]} 12. Kh2 {[%clk 0:03:01]}  O-O {[%clk 0:02:44]} 13. g4 {[%clk 0:02:58]}  Bg6 {[%clk 0:02:44]} 14. f5 {[%clk 0:02:58]}  exf5 {[%clk 0:02:43]} 15. gxf5 {[%clk 0:02:59]}  Bh5 {[%clk 0:02:44]} 16. Qxd5 {[%clk 0:02:57]}  Bxe2 {[%clk 0:02:18]} 17. Re1 {[%clk 0:02:56]}  Bb5 {[%clk 0:02:17]} 18. Qxb7 {[%clk 0:02:48]}  Rb8 {[%clk 0:01:49]} 19. Qd5 {[%clk 0:02:47]}  Qh4 {[%clk 0:01:39]} 20. Qe4 {[%clk 0:02:39]}  Qf2 {[%clk 0:01:23]} 21. Bd2 {[%clk 0:02:30]}  Rfe8 {[%clk 0:01:14]} 22. Qf4 {[%clk 0:02:26]}  Nxe5 {[%clk 0:00:53]} 23. Nc3 {[%clk 0:02:08]}  Nf3+ {[%clk 0:00:32]} 24. Qxf3 {[%clk 0:02:03]}  Qxd2 {[%clk 0:00:32]} 25. Rxe8+ {[%clk 0:01:54]}  Bxe8 {[%clk 0:00:33]} 26. Rd1 {[%clk 0:01:50]}  Qxb2 {[%clk 0:00:32]} 27. Ne4 {[%clk 0:01:47]}  Qe5+ {[%clk 0:00:28]} 28. Kh1 {[%clk 0:01:47]}  Bb6 {[%clk 0:00:26]} 29. f6 {[%clk 0:01:44]}  Bc6 {[%clk 0:00:21]} 30. Qg4 {[%clk 0:01:33]}  g6 {[%clk 0:00:14]} 31. Qh4 {[%clk 0:01:27]}  Bc7 {[%clk 0:00:13]} 32. Kg1 {[%clk 0:01:18]}  Qh2+ {[%clk 0:00:13]} 33. Kf1 {[%clk 0:01:15]}  Bb5+ {[%clk 0:00:13]} 34. Kf2 {[%clk 0:01:15]}  Bb6+ {[%clk 0:00:10]} 35. Kf3 {[%clk 0:01:08]}  Be2+ {[%clk 0:00:09]} 36. Kxe2 {[%clk 0:01:05]}  Qxg2+ {[%clk 0:00:10]} 37. Kd3 {[%clk 0:00:55]}  Rd8+ {[%clk 0:00:10]} 38. Kc3 {[%clk 0:00:56]}  Qf3+ {[%clk 0:00:08]} 39. Kb4 {[%clk 0:00:51]}  Qxd1 {[%clk 0:00:06]} 40. Qh6 {[%clk 0:00:48]}  Rd4+ {[%clk 0:00:04]} 41. Kb5 {[%clk 0:00:48]}  Qa4# {[%clk 0:00:04]} 0-1


[Site "https://www.chess.com"]

[Event "Titled Tuesday Blitz November 07 Late 2023"]
[White "Chor, Kevin"]
[Black "victormago"]
[WhiteFideId "2090740"]
[WhiteElo "2648"]
[BlackElo "2466"]
[Result "1-0"]
[Round "3"]
[TimeControl "180+1"]
[Date "2023.11.07"]
[WhiteClock "0:00:23"]
[BlackClock "0:00:00"]
[Board "73"]

1. e4 {[%clk 0:03:00]}  c5 {[%clk 0:02:55]} 2. Nf3 {[%clk 0:03:00]}  d6 {[%clk 0:02:55]} 3. d4 {[%clk 0:03:01]}  cxd4 {[%clk 0:02:54]} 4. Nxd4 {[%clk 0:03:02]}  Nf6 {[%clk 0:02:54]} 5. Nc3 {[%clk 0:03:02]}  a6 {[%clk 0:02:55]} 6. Be2 {[%clk 0:03:02]}  e5 {[%clk 0:02:55]} 7. Nb3 {[%clk 0:03:02]}  Be7 {[%clk 0:02:53]} 8. Be3 {[%clk 0:03:03]}  Be6 {[%clk 0:02:53]} 9. Nd5 {[%clk 0:03:02]}  Bxd5 {[%clk 0:02:50]} 10. exd5 {[%clk 0:03:03]}  O-O {[%clk 0:02:49]} 11. Qd2 {[%clk 0:03:03]}  Nbd7 {[%clk 0:02:49]} 12. Na5 {[%clk 0:03:01]}  Qc7 {[%clk 0:02:46]} 13. c4 {[%clk 0:02:58]}  Ne4 {[%clk 0:02:41]} 14. Qb4 {[%clk 0:02:58]}  Rfb8 {[%clk 0:02:31]} 15. O-O {[%clk 0:02:55]}  Bf8 {[%clk 0:02:25]} 16. Rac1 {[%clk 0:02:50]}  Ndc5 {[%clk 0:02:13]} 17. f3 {[%clk 0:02:43]}  Nf6 {[%clk 0:02:11]} 18. Qa3 {[%clk 0:02:35]}  Ncd7 {[%clk 0:02:05]} 19. b4 {[%clk 0:02:33]}  Rc8 {[%clk 0:01:58]} 20. Rfd1 {[%clk 0:02:32]}  b6 {[%clk 0:01:50]} 21. Nc6 {[%clk 0:02:27]}  Nb8 {[%clk 0:01:50]} 22. b5 {[%clk 0:02:17]}  a5 {[%clk 0:01:31]} 23. Bd3 {[%clk 0:02:03]}  Nbd7 {[%clk 0:01:27]} 24. Bf5 {[%clk 0:02:02]}  Re8 {[%clk 0:01:28]} 25. Re1 {[%clk 0:01:52]}  g6 {[%clk 0:01:27]} 26. Bh3 {[%clk 0:01:51]}  Nc5 {[%clk 0:01:28]} 27. Bg5 {[%clk 0:01:48]}  Bg7 {[%clk 0:01:24]} 28. Qe3 {[%clk 0:01:44]}  h6 {[%clk 0:01:10]} 29. Bxh6 {[%clk 0:01:41]}  Bxh6 {[%clk 0:01:10]} 30. Qxh6 {[%clk 0:01:41]}  Nd3 {[%clk 0:01:09]} 31. Rcd1 {[%clk 0:01:20]}  Nxe1 {[%clk 0:01:08]} 32. Rxe1 {[%clk 0:01:21]}  a4 {[%clk 0:00:59]} 33. a3 {[%clk 0:01:19]}  e4 {[%clk 0:00:50]} 34. Qh4 {[%clk 0:01:19]}  Kg7 {[%clk 0:00:46]} 35. fxe4 {[%clk 0:01:18]}  Rh8 {[%clk 0:00:42]} 36. Qf4 {[%clk 0:01:17]}  Rae8 {[%clk 0:00:42]} 37. Rf1 {[%clk 0:01:17]}  Nxe4 {[%clk 0:00:33]} 38. Bg4 {[%clk 0:01:13]}  f5 {[%clk 0:00:32]} 39. Bf3 {[%clk 0:01:11]}  Nc5 {[%clk 0:00:22]} 40. Qd4+ {[%clk 0:01:07]}  Kh7 {[%clk 0:00:20]} 41. Qf6 {[%clk 0:01:04]}  Rhf8 {[%clk 0:00:17]} 42. Qh4+ {[%clk 0:01:04]}  Kg7 {[%clk 0:00:17]} 43. Nd4 {[%clk 0:01:01]}  Re5 {[%clk 0:00:15]} 44. Nc6 {[%clk 0:00:58]}  Ree8 {[%clk 0:00:13]} 45. Qg5 {[%clk 0:00:58]}  Qf7 {[%clk 0:00:12]} 46. Qf4 {[%clk 0:00:51]}  Qf6 {[%clk 0:00:11]} 47. h4 {[%clk 0:00:51]}  Ne4 {[%clk 0:00:10]} 48. Re1 {[%clk 0:00:42]}  Nc5 {[%clk 0:00:05]} 49. Rd1 {[%clk 0:00:39]}  Rf7 {[%clk 0:00:03]} 50. Nd4 {[%clk 0:00:33]}  Rh8 {[%clk 0:00:03]} 51. g3 {[%clk 0:00:32]}  Re7 {[%clk 0:00:03]} 52. Nc6 {[%clk 0:00:31]}  Ree8 {[%clk 0:00:03]} 53. Kg2 {[%clk 0:00:29]}  Qb2+ {[%clk 0:00:02]} 54. Rd2 {[%clk 0:00:29]}  Qf6 {[%clk 0:00:02]} 55. Nd4 {[%clk 0:00:27]}  Ne4 {[%clk 0:00:02]} 56. Rd3 {[%clk 0:00:26]}  Nc5 {[%clk 0:00:01]} 57. Rd1 {[%clk 0:00:26]}  Re7 {[%clk 0:00:00]} 58. h5 {[%clk 0:00:23]} 1-0


[Site "https://www.chess.com"]